Cogmind - Beta 17 @@@ ROGUE MODE // 2026.06.28 @ 14:43:46 Player: APerTAS Result: Destroyed by S7-7Q1(R) with Subdweller Machine Gun Performance ------------- Evolutions (0) 0 Regions Visited (2) 400 Robots Destroyed (29) 145 Value Destroyed (666) 666 Prototype IDs (2) 40 Alien Tech Used (0) 0 Bonus (0) 0 TOTAL SCORE: 1251 Bonus ------- None Cogmind --------- Core Integrity 0/250 Matter 262/300 Energy 200/200 System Corruption 1% Temperature Cool (0) Movement Rolling (107) Ox1 Location -10/Subcaves Parts ------- > --- POWER (1) -------- Subdweller Power Source > --- PROPULSION (2) --- Wheel Subdweller Monowheel > --- UTILITY (2) ------ Large Storage Unit Structural Scanner > --- WEAPON (2) ------- Subdweller Machine Gun Battle Cannon > --- INVENTORY (15) --- Ion Engine Subdweller Power Source Light Treads Subdweller Monowheel Heat Sink Huge Storage Unit Seismic Detector Scrap Shield Makeshift Hacking Suite Subdweller Beam Cannon Assault Rifle Light Cannon Subdweller Shrapnel Launcher Mining Claw Peak State ------------ > --- POWER ------------ Subdweller Power Source > --- PROPULSION ------- Subdweller Monowheel Subdweller Monowheel > --- UTILITY ---------- Large Storage Unit Structural Scanner > --- WEAPON ----------- Subdweller Machine Gun Mining Claw > --- INVENTORY -------- Ion Engine Ion Engine Light Treads Wheel Heat Sink Huge Storage Unit Seismic Detector Scrap Shield Hacking Suite Beam Rifle Subdweller Laser Assault Rifle Light Cannon Battle Cannon [Rating: 13] Favorites ----------- Power Ion Engine Engine Ion Engine Propulsion Light Treads Treads Light Treads Wheel Subdweller Monowheel Utility Improved Terrain Scanner Device Improved Terrain Scanner Storage Large Storage Unit Weapon Assault Rifle Energy Gun Medium Laser Ballistic Gun Assault Rifle Ballistic Cannon Battle Cannon Slashing Weapon Mining Claw Build | -11 -10 -10 ------- Run | Yrd Mat Sub Slots Evolved . | . . . Power . | . . . Propulsion . | . . . Utility . | . . . Weapon . | . . . Parts Attached 27 | 7 8 12 Power 4 | 1 1 2 Engine 4 | 1 1 2 Core . | . . . Reactor . | . . . Propulsion 7 | 2 1 4 Treads 3 | 2 1 . Leg . | . . . Wheel 4 | . . 4 Hover . | . . . Flight . | . . . Utility 5 | 2 2 1 Device 2 | 1 . 1 Storage 3 | 1 2 . Processor . | . . . Hackware . | . . . Protection . | . . . Artifact . | . . . Weapon 11 | 2 4 5 Energy Gun 2 | . . 2 Energy Cannon . | . . . Ballistic Gun 7 | 2 3 2 Ballistic Cannon 1 | . . 1 Launcher . | . . . Special Weapon . | . . . Impact Weapon . | . . . Slashing Weapon 1 | . 1 . Piercing Weapon . | . . . Special Melee Weapon . | . . . Unidentified Prototypes . | . . . Parts Lost 1 | . . 1 Power . | . . . Propulsion . | . . . Utility 1 | . . 1 Weapon . | . . . Highest Loss Streak 1 | . . 1 To Critical Strikes . | . . . Average Backups 11 | 2 10 14 Power 1 | . 1 2 Propulsion 1 | 1 1 2 Utility 3 | . 2 4 Weapon 4 | . 4 5 Tool/Special . | . . . Unused Backups 15 | . 3 12 Power 2 | . 1 1 Propulsion 1 | . 1 . Utility 5 | . . 5 Weapon 6 | . . 6 Tool/Special 1 | . 1 . Average Slot Usage (%) 100 | . 100 100 Engine 14 | . 14 14 Treads 22 | . 28 12 Wheel 5 | . . 15 Device 14 | . 14 14 Storage 14 | . 14 14 Energy Gun 1 | . . 3 Ballistic Gun 21 | . 26 14 Slashing Weapon 4 | . 1 9 Peak Build Rating 13 | 9 10 13 Average Rating 10 | 5 9 11 On Entrance 6 | . 9 10 Avg Prop Armor Cover (%) 7 | . . 7 Naked Turns . | . . . Heaviest Build 90 | 14 90 33 Greatest Support 40 | 40 40 40 Greatest Overweight (x) 2 | . 2 1 Average Overweight (x) . | . . . Largest Inventory Capacity 25 | 8 25 15 Average Capacity 15 | 6 16 15 Most Carried 15 | 4 15 15 Average Carried 12 | 2 10 14 Final Capacity 15 | 8 15 15 Final Carried 15 | 4 15 15 Class Distribution -------------------- 100% | Mutant Dominant Class ---------------- Mutant | -10/Materials Mutant | -10/Subcaves Resources | -11 -10 -10 ----------- Run | Yrd Mat Sub Matter Collected 938 | 298 397 243 Remotely . | . . . Salvage Created 995 | 117 609 269 Parts 65 | 4 33 28 Haulers Intercepted 2 | . 2 . Recyclers Shooed 2 | . 2 . Parts Field Recycled . | . . . Retrieved Matter . | . . . Parts Self-Destructed 16 | . . 16 Prevented . | . . . Parts Restored . | . . . Kills | -11 -10 -10 ------- Run | Yrd Mat Sub Combat Hostiles Destroyed 21 | . 11 10 Guns 20 | . 11 9 Cannons 1 | . . 1 Classes Destroyed 10 | 2 6 2 Builder 1 | . 1 . Tunneler 1 | 1 . . Hauler 2 | . 2 . Recycler 1 | 1 . . Operator 1 | . 1 . Watcher 2 | . 2 . Swarmer 8 | . 3 5 Grunt 8 | . 8 . Sentry 1 | . . 1 Subdweller 4 | . . 4 Best Kill Streak 4 | 1 2 4 Combat Bots Only 4 | . 2 4 Max Kills in Single Turn 1 | 1 1 1 Gunslinging . | . . . Exploded . | . . . Melee . | . . . Uniques/NPCs Destroyed . | . . . Combat | -11 -10 -10 -------- Run | Yrd Mat Sub Hostile Shots Fired 136 | . 69 67 Missed 44 | . 21 23 Hits 92 | . 48 44 Projectile 92 | . 48 44 Critical Strikes 2 | . . 2 Damage Taken 1277 | . 640 637 Core 258 | . 131 127 Absorbed by Shields . | . . . Regen/Repaired (Parts) 101 | . 101 . Core Remaining (%) 100 | 100 . . Volleys Fired 107 | 7 63 37 Largest 2 | 2 2 2 Hottest 70 | 40 40 70 Shots Fired 186 | 14 124 48 Gun 182 | 14 124 44 Cannon 4 | . . 4 Launcher . | . . . Special . | . . . Kinetic 179 | 14 124 41 Thermal 7 | . . 7 Explosive . | . . . Electromagnetic . | . . . Robot Hit Streak 14 | 8 10 14 Robot Miss Streak 4 | . 4 1 Penetration Max . | . . . Secondary Targets 2 | . 2 . Max Gunslinging Chain 1 | . 1 . Shots Hit Robots 122 | 8 75 39 Core Hits 48 | 3 30 15 Critical Kills 2 | . 1 1 Critical Parts Destroyed 1 | . 1 . Critical Strikes 3 | . 2 1 Destroy 3 | . 2 1 Melee Attacks 23 | . 10 13 Impact . | . . . Slashing 23 | . 10 13 Piercing . | . . . Sneak Attacks . | . . . Combat Hostiles . | . . . Follow-up Attacks . | . . . Damage Inflicted 1626 | 89 884 653 Guns 1559 | 89 884 586 Cannons 67 | . . 67 Explosions . | . . . Melee . | . . . Ramming . | . . . Kinetic 1551 | 89 884 578 Thermal 75 | . . 75 Explosive . | . . . Electromagnetic . | . . . Impact . | . . . Slashing . | . . . Piercing . | . . . Highest Corruption 1 | . 1 1 Average Corruption 1 | . 1 1 Corruption Purged . | . . . Corruption Blocked . | . . . Effects 17 | . 10 7 Message Errors 4 | . 2 2 Matter Fused 6 | . 4 2 Energy Discharges 2 | . . 2 Data Loss (minor) 2 | . 2 . Misfires 1 | . 1 . Alerts 2 | . 1 1 Overload Shots . | . . . Overflow Damage . | . . . Projectiles . | . . . Explosions . | . . . Melee . | . . . Knockbacks . | . . . Impact . | . . . Kinetic . | . . . Secondary . | . . . Self-Inflicted Damage . | . . . Shots . | . . . Rammed . | . . . Targets Rammed . | . . . Kicked . | . . . Crushed . | . . . Highest Temperature 12 | . 12 10 Average Temperature 6 | . 6 10 Received Heat Transfer 339 | . 267 72 Siege Activations . | . . . Martial Activations . | . . . Shielding Activations . | . . . Robots Disrupted . | . . . Combat Hostiles . | . . . Robots Corrupted . | . . . Combat Hostiles . | . . . Parts Fried . | . . . Impact Corruptions . | . . . Robots Melted . | . . . Combat Hostiles . | . . . Parts Melted . | . . . Heat Transferred 222 | . . 222 Parts Sabotaged . | . . . Parts Stolen . | . . . Parts Stripped . | . . . Power Chain Reactions . | . . . Alert | -11 -10 -10 ------- Run | Yrd Mat Sub Maximum Alert Level . | . . . Low Security (%) 100 | 100 100 . Level 1 . | . . . Level 2 . | . . . Level 3 . | . . . Level 4 . | . . . Level 5 . | . . . High Security . | . . . Max Security . | . . . Peak Influence 100 | 5 100 . Initial . | . . . Average 14 | . 14 . Influence Increases 620 | 10 400 210 Destroy 0b10 Robot/C 340 | . 220 120 Destroy 0b10 Robot/NC 40 | 10 30 . Destroy Leader 68 | . 68 . Successful Hack 16 | . 16 . Destroy Structure 6 | . 6 . Lose Combat Pursuer 150 | . 60 90 Influence Decreases 524 | 10 400 114 Time Decay 524 | 10 400 114 Squads Dispatched 2 | . 2 . Investigation . | . . . Extermination . | . . . Reinforcement 2 | . 2 . Assault . | . . . Garrison . | . . . Intercept . | . . . Searches Triggered . | . . . Construction Impeded . | . . . Haulers Reinforced . | . . . Active Scanning Responses . | . . . Cargo Convoy Interrupts . | . . . Stealth | -11 -10 -10 --------- Run | Yrd Mat Sub Distress Signals 2 | . 2 . Communications Jammed . | . . . Distress Signals . | . . . Times Spotted 35 | . 22 13 Peak Tracking Total 4 | . 3 4 Tactical Retreats 5 | . 2 3 Traps | -11 -10 -10 ------- Run | Yrd Mat Sub Traps Triggered 2 | . 2 . Indirectly . | . . . Trap Hack Attempts . | . . . Triggered . | . . . Disarmed . | . . . Reprogrammed . | . . . Reused . | . . . Traps Extracted . | . . . Installed . | . . . Triggered . | . . . Machines | -11 -10 -10 ---------- Run | Yrd Mat Sub Machines Disabled . | . . . Max in Single Turn . | . . . Machines Repaired . | . . . Machines Dismantled . | . . . Machines Sabotaged . | . . . Overloaded Fab Kills . | . . . Hacking | -11 -10 -10 --------- Run | Yrd Mat Sub Machines Accessed 9 | . 8 1 Terminals 6 | . 6 . Fabricators . | . . . Repair Stations 1 | . 1 . Recycling Units 1 | . 1 . Scanalyzers . | . . . Garrison Access . | . . . Total Hacks 25 | . 21 4 Successful 16 | . 12 4 Failed 9 | . 9 . Catastrophic . | . . . Database Lockouts . | . . . Manual 15 | . 15 . Terminals 16 | . 16 . Fabricators . | . . . Repair Stations 2 | . 2 . Recycling Units 3 | . 3 . Scanalyzers . | . . . Garrison Access . | . . . Terminal Hacks 9 | . 5 4 Record 4 | . . 4 Prototype ID Bank 1 | . 1 . Terminal Index 1 | . 1 . Locate Traps 2 | . 2 . Zone Layout 1 | . 1 . Fabricator Hacks . | . . . Repair Station Hacks 2 | . 2 . Scan Component 1 | . 1 . Repair 1 | . 1 . Recycling Unit Hacks 1 | . 1 . Retrieve Components 1 | . 1 . Scanalyzer . | . . . Garrison Access Hacks . | . . . Unauthorized Hacks 4 | . 4 . Terminals 3 | . 3 . Track 2 | . 2 . Botnet 1 | . 1 . Fabricators . | . . . Repair Stations . | . . . Recycling Units 1 | . 1 . Mask 1 | . 1 . Scanalyzers . | . . . Garrison Access . | . . . Data Cores Recovered . | . . . Used . | . . . Hacking Detections 8 | . 8 . Full Trace Events 1 | . 1 . Feedback Events . | . . . Feedback Blocked . | . . . Robot Schematics Acquired . | . . . Robots Built . | . . . Authchips . | . . . Time . | . . . Total Robot Build Rating . | . . . Part Schematics Acquired . | . . . Parts Built . | . . . Authchips . | . . . Time . | . . . Total Part Build Rating . | . . . Part Studies Acquired . | . . . Parts Repaired 1 | . 1 . Time 26 | . 26 . Parts Recycled . | . . . Recycled Matter . | . . . Retrieved Matter . | . . . Retrieved Components 1 | . 1 . Parts Scanalyzed . | . . . Part Schematics Acquired . | . . . Parts Damaged . | . . . Bothacking | -11 -10 -10 ------------ Run | Yrd Mat Sub Used RIF Installer . | . . . Robots Hacked . | . . . Non-combat . | . . . Combat . | . . . Robot Hacks Applied . | . . . Relay Couplers Released . | . . . Fabnet Peak Effective % . | . . . Robots Rewired . | . . . Allies Hacked . | . . . Hacks Repelled . | . . . Allies | -11 -10 -10 -------- Run | Yrd Mat Sub Total Allies . | . . . Largest Group . | . . . Highest-Rated Group . | . . . Highest-Rated Ally . | . . . Total Orders . | . . . Ally Attacks . | . . . Total Damage . | . . . Kills . | . . . Allies Corrupted . | . . . Allies Melted . | . . . Intel | -11 -10 -10 ------- Run | Yrd Mat Sub Active Infowar (turns) 3696 | 19 2390 1287 Terrain 2773 | 19 2390 364 Structural 923 | . . 923 Robot Analysis Total . | . . . Derelict Logs Recovered 3 | . . 3 Drone Launches . | . . . Drone Recoveries . | . . . Exploration | -11 -10 -10 ------------- Run | Yrd Mat Sub Turns Passed 3810 | 129 2390 1291 Spaces Moved 1909 | 65 971 873 Core 7 | 7 . . Treads 1328 | 58 971 299 Legs . | . . . Wheels 574 | . . 574 Hover . | . . . Flight . | . . . Fastest Speed 50 | 50 160 107 Average Speed 161 | 148 193 127 Slowest Speed 320 | 160 320 160 Overloaded Moves . | . . . Propulsion Burnouts . | . . . Robots Hopped . | . . . Potential Cave-ins . | . . . Cave-ins Triggered . | . . . Exploration Rate (%) 49 | 3 99 47 Regions Visited 2 Branch Regions 1 Pre-discovered Areas 1 | . . 1 Known Exits Taken . | . . . Unknown Exits Taken 2 | 1 1 . Scrap Searched 7 | . . 7 Spaces Dug 7 | . 7 . Terrain Destroyed 7 | . 7 . Melee 7 | . 7 . Projectile . | . . . AOE . | . . . Terrain Rammed . | . . . Walls Destroyed . | . . . Machines Disabled . | . . . Actions | -11 -10 -10 --------- Run | Yrd Mat Sub Total 2413 | 82 1350 981 Wait 306 | . 279 27 Move 1907 | 64 970 873 Hop . | . . . Pick Up 24 | 4 12 8 Fast Attach 7 | 7 . . Attach 1 | . . 1 Detach . | . . . Swap 21 | . 9 12 Drop 17 | . 7 10 Fire 107 | 7 63 37 Melee 23 | . 10 13 Ram . | . . . Kick . | . . . Crush . | . . . Escape Stasis . | . . . Rewire . | . . . Trap . | . . . Miscellaneous . | . . . Route ------- -11/Scrapyard -10/Materials (discovered 5 exits: [*Mat x3] / [*Min] / *Sub) -10/Subcaves (discovered 1 exit: [*Rec]) History --------- Turn | Location | Event 14 | -11/Scrapyard | Discovered new exit (range 16) 130 | -11/Scrapyard | Entered Materials 303 | -10/Materials | Build established: Mutant 396 | -10/Materials | Discovered new exit (range 6) 522 | -10/Materials | Discovered new exit (range 3) 1105 | -10/Materials | Repaired Lgt. Treads 1543 | -10/Materials | Discovered new exit (range 4) 1786 | -10/Materials | Discovered new exit (range 10) 1894 | -10/Materials | Core integrity fell below 50% 2503 | -10/Materials | Discovered new exit (range 11) 2520 | -10/Materials | Entered Subcaves 2532 | -10/Subcaves | Learned Materials stockpile data 2597 | -10/Subcaves | Visited Clippyterm 2602 | -10/Subcaves | Learned Factory emergency access door positions 2725 | -10/Subcaves | Learned location of Zion (-7) 2725 | -10/Subcaves | Met a Zionite searching for "candidates" 3104 | -10/Subcaves | A swath of the cavern ceiling suddenly collapsed 3295 | -10/Subcaves | Learned Materials garrison access intel 3363 | -10/Subcaves | Shifting Twisted Machinery released Shrapnel Trap 3376 | -10/Subcaves | Shifting Twisted Machinery released Sub. Machine Gun 3432 | -10/Subcaves | Shifting Twisted Machinery released Sub. Machine Gun 3438 | -10/Subcaves | Shifting Twisted Machinery released Barrage Gun 3481 | -10/Subcaves | Learned 2 Materials zone layouts 3486 | -10/Subcaves | A swath of the cavern ceiling suddenly collapsed 3539 | -10/Subcaves | Core integrity fell below 20% 3563 | -10/Subcaves | Discovered new exit (range 12) 3811 | -10/Subcaves | Destroyed by S7-7Q1(R) with Subdweller Machine Gun Last Messages --------------- 03555_ S-10 Pest suffers critical hit (Destroy). 03555_ S-10 Pest destroyed. 03557_ Lgt. Assault Rifle fries itself beyond repair. 03559_ Flight Unit fries itself beyond repair. 03559_ S-10 Pest destroyed. 03560_ Flight Unit fries itself beyond repair. 03563_ Acquired 8 matter. 03563_ EXIT=FOUND 03567_ Lgt. Assault Rifle fries itself beyond repair. 03569_ Lgt. Ion Engine fries itself beyond repair. 03623_ System corrupted: Matter fused (-8). 03624_ Sub. Monowheel shoots sparks and powers down. 03689_ System corrupted: Energy discharge (-44). 03709_ Sub. Power Source shoots sparks and powers down. 03739_ Acquired 8 matter. 03764_ System corrupted: Matter fused (-8). 03785_ Acquired 28 matter. 03800_ WC-P46(R) destroyed. 03810_ S7-7Q1(R) affixes Scrap Shield Fragment to Scrap Shield. Map ----- +----------------------------------------------------+ | ?????????????????????????????????????????????????? | | ?????????????????????????????????????????????????? | | ?????????????????????????????????????????????????? | | ?????????????????????????????????????????????????? | | ?????????????????????????????????????????????????? | | ?????????????????????????????????????????????????? | | ?????????????????????????????????????????????????? | | ?????????????????????????????????????????????????? | | ?????????????????????????????????????????????????? | | ?????????????????????????????????????????????????? | | ?????????????????????? ????????????????????????? | | ????????????????????? ????????????????????????? | | ???????????????## ????????????????????????? | | ???????????????## ????????????????????????? | | ???????????????# ????????????????????????? | | ????????????????? ????????????????????????? | | ????????????????? ####????????????????????? | | ????????????????# #####???????????????????? | | ????????????????## ####??????????????????? | | ?#??????????????# ####?????????????????? | | ????????????????## ###???####??????????? | | ????????????????## # ###? ###??????????? | | ????????????????## ## ## ##??????????? | | ????????????????## ####% % ##??????????? | | ???????????????### ###R& ##??????????? | | ??????????????#### ####%@ ###??????????? | | ??????????????### ###&### ## ##???????????? | | ?????????????### ## ### ? ## ? ##???????????? | | #####??????##### ###?? ###????????????????? | | # ###???##### % #######??????????????????? | | ####### %# ####??????????????????? | | #?### ???????????????? | | ## # #### ??????????????? | | ### ##### ## ### # # ??????????????? | | ## ## ############ ? ???????????????? | | #### ########### ? # ???????????????? | | ?## ###########??? ## ???????????????? | | ?#### # # ###########???### ???????????????? | | ?########## ## #### ####??? ###?????????????? | | ?????##### ## ####?######?????????????? | | ????####### ######"##?????????????? | | ????######### ####""##?????????????? | | ???### ###### ## ## #####"####????????????? | | ????## ### ##############"####????????????? | | ??#?## ########"#"####""##????????????? | | ????## ###### "# ""#"####???????????? | | ????## % ##### ###"#"#####???????????? | | ????## ##### #####"###"###???????????? | | ????### #### ######## "###???????????? | | ????###### ## ## [ #############???????????? | +----------------------------------------------------+ Best States ------------- Heat Dissipation 25 Energy Generation 15 Energy Capacity 250 Matter Stores 300 Matter Capacity 300 Sight Range 16 Terrain Scan Range 16 Terrain Scan Density 10 Evasion (%) 40 Recoil Reduction 2 Item Schematics ----------------- None Robot Schematics ------------------ None Fabricated ------------ Nothing Repaired ---------- Lgt. Treads | 27% | -10/Materials Studied --------- None Alien Tech Used ----------------- None Achievements -------------- None Challenges ------------ None Game ------ Seed AbsorptionWeightJoltstriker Manual? 0 Play Time 00:21:58 Cumulative 67.5 hours Start 2026.06.24 @ 07:15:23 End 2026.06.28 @ 14:43:46 Sessions 3 Manual Loads 0 Difficulty Rogue Special Mode None Game No. 210 Rogue 210 Adventurer 0 Explorer 0 Win Type - Total 0 Types 0/0/0/0/0/0/0/0/0/0 Lore% 63 Gallery% 37 Achievement% 36 Wizard Run 0 Options --------- Layout 0 ASCII 0 Keyboard 1 Movement Arrows Keybinds 0 Fullscreen 1 Font 24/Terminus Map View 64x52 Zoom Use 0% Tactical HUD 1 Map Filters NONE Filters NONE Steam 1 RUN: ed2e87fd-30fa-43de-b935-5f75bdab186b